Cogmind - Beta 15 @@@ ROGUE MODE // 2025.10.15 @ 13:21:28 Player: shapeshifter Result: Self-destructed Performance ------------- Evolutions (0) 0 Regions Visited (4) 800 Robots Destroyed (20) 100 Value Destroyed (255) 255 Prototype IDs (27) 540 Alien Tech Used (0) 0 Bonus (321) 321 TOTAL SCORE: 2016 Bonus ------- Follower Combat Kills 21 Aligned with FarCom 300 Cogmind --------- Core Integrity 162/250 Matter 300/300 Energy 100/100 System Corruption 0% Temperature Cool (0) Movement Core (3400) Ox67 Location -9/Mines Parts ------- > --- POWER (1) -------- (None) > --- PROPULSION (2) --- (None) > --- UTILITY (2) ------ Humpback > --- WEAPON (2) ------- Small Laser Field Laser > --- INVENTORY (35) --- Large Storage Unit Humpback Humpback Humpback Large Battery (200) Large Battery (200) High-capacity Matter Pod (200) Seismic Detector Improved Propulsion Shielding Medium Armor Plating Heavy Armor Plating Chronowheel Guided Plasma Cannon Firepult Rocket Launcher Peak State ------------ > --- POWER ------------ Light Ion Engine > --- PROPULSION ------- Wheel Wheel > --- UTILITY ---------- Humpback > --- WEAPON ----------- Small Laser Field Laser > --- INVENTORY -------- Large Storage Unit Humpback Humpback Humpback Seismic Detector Improved Propulsion Shielding Heavy Armor Plating Chronowheel Guided Plasma Cannon Firepult Rocket Launcher [Rating: 15] Favorites ----------- Power Light Ion Engine Engine Light Ion Engine Propulsion Light Treads Treads Light Treads Wheel Wheel Utility Seismic Detector Device Seismic Detector Storage Large Storage Unit Weapon Small Laser Energy Gun Small Laser Build | -11 -10 -10 -10 -9 ------- Run | Yrd Mat Min Exi Min Slots Evolved . | . . . . . Power . | . . . . . Propulsion . | . . . . . Utility . | . . . . . Weapon . | . . . . . Parts Attached 14 | 6 3 1 4 . Power 2 | 1 1 . . . Engine 2 | 1 1 . . . Core . | . . . . . Reactor . | . . . . . Propulsion 4 | 2 . . 2 . Treads 2 | 2 . . . . Leg . | . . . . . Wheel 2 | . . . 2 . Hover . | . . . . . Flight . | . . . . . Utility 4 | 1 2 . 1 . Device 1 | . 1 . . . Storage 3 | 1 1 . 1 . Processor . | . . . . . Hackware . | . . . . . Protection . | . . . . . Artifact . | . . . . . Weapon 4 | 2 . 1 1 . Energy Gun 4 | 2 . 1 1 . Energy Cannon . | . . . . . Ballistic Gun . | . . . . . Ballistic Cannon . | . . . . . Launcher . | . . . . . Special Weapon . | . . . . . Impact Weapon . | . . . . . Slashing Weapon . | . . . . . Piercing Weapon . | . . . . . Special Melee Weapon . | . . . . . Unidentified Prototypes . | . . . . . Parts Lost 3 | . . . . 3 Power 1 | . . . . 1 Propulsion 2 | . . . . 2 Utility . | . . . . . Weapon . | . . . . . Highest Loss Streak 3 | . . . . 3 To Critical Strikes . | . . . . . Average Backups 8 | 4 5 7 11 14 Power . | . . . . . Propulsion 1 | 1 2 2 1 . Utility 4 | . 1 3 7 10 Weapon 1 | . 1 2 2 3 Tool/Special . | . . . . . Unused Backups 18 | . . . 5 13 Power 3 | . . . 3 . Propulsion . | . . . . . Utility 11 | . . . 2 9 Weapon 3 | . . . . 3 Tool/Special 1 | . . . . 1 Average Slot Usage (%) 96 | . 99 100 92 84 Engine 14 | . 14 14 14 14 Treads 21 | . 28 28 14 . Wheel 6 | . . . 13 27 Device 10 | . 13 14 7 . Storage 14 | . 14 14 14 14 Energy Gun 28 | . 28 28 28 28 Peak Build Rating 15 | 6 8 10 15 15 Average Rating 9 | 4 7 8 12 14 On Entrance 7 | . 6 8 10 15 Naked Turns . | . . . . . Heaviest Build 207 | 12 28 28 207 207 Greatest Support 40 | 40 40 40 40 20 Greatest Overweight (x) 20 | . . . 10 20 Average Overweight (x) 1 | . . . 3 10 Largest Inventory Capacity 35 | 8 15 15 35 35 Average Capacity 18 | 7 14 15 24 35 Most Carried 20 | 6 7 11 19 20 Average Carried 10 | 4 5 8 15 19 Final Capacity 35 | 8 15 15 35 35 Final Carried 20 | 6 7 10 19 20 Class Distribution -------------------- 76% | Mutant 23% | Hauler-Mutant Dominant Class ---------------- Mutant | -10/Materials Mutant | -10/Mines Hauler-Mutant | -10/Exiles Hauler-Mutant | -9/Mines Resources | -11 -10 -10 -10 -9 ----------- Run | Yrd Mat Min Exi Min Matter Collected 580 | 260 20 175 40 85 Remotely . | . . . . . Salvage Created 394 | 41 206 130 . 17 Parts 35 | 9 20 5 . 1 Haulers Intercepted . | . . . . . Recyclers Shooed 1 | 1 . . . . Parts Field Recycled . | . . . . . Retrieved Matter . | . . . . . Parts Self-Destructed . | . . . . . Prevented . | . . . . . Kills | -11 -10 -10 -10 -9 ------- Run | Yrd Mat Min Exi Min Combat Hostiles Destroyed 15 | . 8 6 . 1 Guns 15 | . 8 6 . 1 Classes Destroyed 5 | 1 3 1 . . Worker 1 | . . 1 . . Tunneler 2 | 2 . . . . Watcher 2 | . 2 . . . Swarmer 13 | . 6 6 . 1 Grunt 2 | . 2 . . . Best Kill Streak 3 | 1 3 3 . 1 Combat Bots Only 3 | . 3 3 . 1 Max Kills in Single Turn 2 | 1 2 1 . 1 Gunslinging . | . . . . . Exploded . | . . . . . Melee . | . . . . . Uniques/NPCs Destroyed . | . . . . . Combat | -11 -10 -10 -10 -9 -------- Run | Yrd Mat Min Exi Min Hostile Shots Fired 88 | . 44 31 . 13 Missed 27 | . 13 10 . 4 Hits 61 | . 31 21 . 9 Melee 1 | . . . . 1 Projectile 60 | . 31 21 . 8 AOE 5 | . . . . 5 Critical Strikes 1 | . 1 . . . Damage Taken 748 | . 270 175 . 303 Core 88 | . 26 . . 62 Absorbed by Shields . | . . . . . Core Remaining (%) 100 | 100 . . . . Volleys Fired 48 | 7 22 16 . 3 Largest 2 | 2 2 2 . 2 Hottest 103 | 80 80 103 . 103 Shots Fired 96 | 14 44 32 . 6 Gun 96 | 14 44 32 . 6 Cannon . | . . . . . Launcher . | . . . . . Special . | . . . . . Kinetic . | . . . . . Thermal 96 | 14 44 32 . 6 Explosive . | . . . . . Electromagnetic . | . . . . . Robot Hit Streak 7 | 3 7 7 . 3 Robot Miss Streak 4 | 2 4 3 . 1 Penetration Max . | . . . . . Secondary Targets 3 | . 1 2 . . Max Gunslinging Chain 1 | . 1 1 . . Shots Hit Robots 55 | 8 24 19 . 4 Core Hits 24 | 2 14 7 . 1 Critical Kills . | . . . . . Critical Parts Destroyed . | . . . . . Critical Strikes . | . . . . . Melee Attacks . | . . . . . Impact . | . . . . . Slashing . | . . . . . Piercing . | . . . . . Sneak Attacks . | . . . . . Combat Hostiles . | . . . . . Follow-up Attacks . | . . . . . Damage Inflicted 640 | 86 286 213 . 55 Guns 640 | 86 286 213 . 55 Cannons . | . . . . . Explosions . | . . . . . Melee . | . . . . . Ramming . | . . . . . Kinetic . | . . . . . Thermal 640 | 86 286 213 . 55 Explosive . | . . . . . Electromagnetic . | . . . . . Impact . | . . . . . Slashing . | . . . . . Piercing . | . . . . . Highest Corruption . | . . . . . Average Corruption . | . . . . . Corruption Purged . | . . . . . Corruption Blocked . | . . . . . Overload Shots . | . . . . . Overflow Damage . | . . . . . Projectiles . | . . . . . Explosions . | . . . . . Melee . | . . . . . Knockbacks . | . . . . . Impact . | . . . . . Kinetic . | . . . . . Secondary . | . . . . . Self-Inflicted Damage . | . . . . . Shots . | . . . . . Rammed . | . . . . . Targets Rammed . | . . . . . Kicked . | . . . . . Crushed . | . . . . . Highest Temperature 168 | 54 150 168 . 141 Average Temperature 55 | 22 46 74 . 70 Received Heat Transfer 57 | . 42 . . 15 Siege Activations . | . . . . . Martial Activations . | . . . . . Shielding Activations . | . . . . . Robots Disrupted . | . . . . . Combat Hostiles . | . . . . . Robots Corrupted . | . . . . . Combat Hostiles . | . . . . . Parts Fried . | . . . . . Impact Corruptions . | . . . . . Robots Melted . | . . . . . Combat Hostiles . | . . . . . Parts Melted 1 | . . 1 . . Heat Transferred 1461 | 200 650 487 . 124 Parts Sabotaged . | . . . . . Parts Stolen . | . . . . . Parts Stripped . | . . . . . Power Chain Reactions . | . . . . . Alert | -11 -10 -10 -10 -9 ------- Run | Yrd Mat Min Exi Min Maximum Alert Level . | . . . . . Low Security (%) 100 | 100 100 100 . 100 Level 1 . | . . . . . Level 2 . | . . . . . Level 3 . | . . . . . Level 4 . | . . . . . Level 5 . | . . . . . High Security . | . . . . . Max Security . | . . . . . Peak Influence 119 | 5 71 80 . 119 Initial 3 | . 3 . . . Average 26 | 1 28 18 . 70 Influence Increases 520 | 10 227 164 . 119 Destroy 0b10 Robot/C 360 | . 160 120 . 80 Destroy 0b10 Robot/NC 25 | 10 10 5 . . Destroy Leader 64 | . 34 20 . 10 Allied During Kill 33 | . . 19 . 14 Successful Hack 23 | . 23 . . . Disable Machine 15 | . . . . 15 Influence Decreases 520 | 5 232 164 . 119 Entered New Map 2 | . 2 . . . Time Decay 469 | 5 230 164 . 70 Lost Ally 49 | . . . . 49 Squads Dispatched 2 | . 1 1 . . Investigation 1 | . . 1 . . Extermination . | . . . . . Reinforcement 1 | . 1 . . . Assault . | . . . . . Garrison . | . . . . . Intercept . | . . . . . Searches Triggered . | . . . . . Construction Impeded . | . . . . . Haulers Reinforced . | . . . . . Active Scanning Responses . | . . . . . Cargo Convoy Interrupts . | . . . . . Stealth | -11 -10 -10 -10 -9 --------- Run | Yrd Mat Min Exi Min Distress Signals . | . . . . . Communications Jammed . | . . . . . Distress Signals . | . . . . . Times Spotted 27 | . 12 6 . 9 Peak Tracking Total 4 | . 3 3 . 4 Tactical Retreats . | . . . . . Traps | -11 -10 -10 -10 -9 ------- Run | Yrd Mat Min Exi Min Traps Triggered . | . . . . . Indirectly . | . . . . . Trap Hack Attempts . | . . . . . Triggered . | . . . . . Disarmed . | . . . . . Reprogrammed . | . . . . . Reused . | . . . . . Traps Extracted . | . . . . . Installed . | . . . . . Triggered . | . . . . . Machines | -11 -10 -10 -10 -9 ---------- Run | Yrd Mat Min Exi Min Machines Disabled 1 | . . . . 1 Max in Single Turn . | . . . . . Machines Repaired . | . . . . . Machines Dismantled . | . . . . . Machines Sabotaged . | . . . . . Overloaded Fab Kills . | . . . . . Hacking | -11 -10 -10 -10 -9 --------- Run | Yrd Mat Min Exi Min Machines Accessed 7 | . 4 1 2 . Terminals 3 | . 3 . . . Fabricators . | . . . . . Repair Stations . | . . . . . Recycling Units 1 | . 1 . . . Scanalyzers . | . . . . . Garrison Access . | . . . . . Total Hacks 21 | . 18 1 2 . Successful 12 | . 9 1 2 . Failed 8 | . 8 . . . Catastrophic 2 | . 2 . . . Database Lockouts 1 | . 1 . . . Manual 20 | . 19 . 1 . Terminals 17 | . 17 . . . Fabricators . | . . . . . Repair Stations . | . . . . . Recycling Units 1 | . 1 . . . Scanalyzers . | . . . . . Garrison Access . | . . . . . Terminal Hacks 7 | . 4 1 2 . Record 1 | . . . 1 . Prototype ID Bank 2 | . 2 . . . Open Door 1 | . . 1 . . Branch Access Points 1 | . 1 . . . Zone Layout 1 | . 1 . . . Proto ID Catalog 1 | . . . 1 . Fabricator Hacks . | . . . . . Repair Station Hacks . | . . . . . Recycling Unit Hacks . | . . . . . Scanalyzer . | . . . . . Garrison Access Hacks . | . . . . . Unauthorized Hacks 5 | . 5 . . . Terminals 5 | . 5 . . . Botnet 2 | . 2 . . . Skim 3 | . 3 . . . Fabricators . | . . . . . Repair Stations . | . . . . . Recycling Units . | . . . . . Scanalyzers . | . . . . . Garrison Access . | . . . . . Data Cores Recovered . | . . . . . Used . | . . . . . Hacking Detections 3 | . 3 . . . Full Trace Events . | . . . . . Feedback Events . | . . . . . Feedback Blocked . | . . . . . Robot Schematics Acquired . | . . . . . Robots Built . | . . . . . Authchips . | . . . . . Time . | . . . . . Total Robot Build Rating . | . . . . . Part Schematics Acquired . | . . . . . Parts Built . | . . . . . Authchips . | . . . . . Time . | . . . . . Total Part Build Rating . | . . . . . Parts Repaired . | . . . . . Time . | . . . . . Parts Recycled . | . . . . . Recycled Matter . | . . . . . Retrieved Matter . | . . . . . Retrieved Components . | . . . . . Parts Scanalyzed . | . . . . . Part Schematics Acquired . | . . . . . Parts Damaged . | . . . . . Bothacking | -11 -10 -10 -10 -9 ------------ Run | Yrd Mat Min Exi Min Used RIF Installer . | . . . . . Robots Hacked . | . . . . . Non-combat . | . . . . . Combat . | . . . . . Robot Hacks Applied . | . . . . . Relay Couplers Released . | . . . . . Fabnet Peak Effective % . | . . . . . Robots Rewired . | . . . . . Allies Hacked . | . . . . . Hacks Repelled . | . . . . . Allies | -11 -10 -10 -10 -9 -------- Run | Yrd Mat Min Exi Min Total Allies 4 | . . 4 . . Largest Group 4 | . . 4 3 3 Highest-Rated Group 71 | . . 71 40 40 Highest-Rated Ally 31 | . . 31 16 16 Total Orders . | . . . . . Ally Attacks 20 | . . . . 20 Total Damage 153 | . . . . 153 Kills 3 | . . . . 3 Allies Corrupted . | . . . . . Allies Melted . | . . . . . Intel | -11 -10 -10 -10 -9 ------- Run | Yrd Mat Min Exi Min Active Infowar (turns) 1743 | . 604 726 413 . Seismic 1743 | . 604 726 413 . Robot Analysis Total . | . . . . . Derelict Logs Recovered 1 | . . 1 . . Drone Launches . | . . . . . Drone Recoveries . | . . . . . Exploration | -11 -10 -10 -10 -9 ------------- Run | Yrd Mat Min Exi Min Turns Passed 2422 | 119 614 726 796 167 Spaces Moved 1280 | 60 335 411 408 66 Core 14 | 14 . . . . Treads 1041 | 46 335 411 249 . Legs . | . . . . . Wheels 225 | . . . 159 66 Hover . | . . . . . Flight . | . . . . . Fastest Speed 50 | 50 160 160 160 230 Average Speed 171 | 134 160 160 187 232 Slowest Speed 380 | 160 160 160 230 380 Overloaded Moves . | . . . . . Propulsion Burnouts . | . . . . . Robots Hopped . | . . . . . Potential Cave-ins . | . . . . . Cave-ins Triggered . | . . . . . Exploration Rate (%) 48 | 4 59 91 69 17 Regions Visited 4 Branch Regions 3 Pre-discovered Areas 1 | . . . 1 . Known Exits Taken 1 | . 1 . . . Unknown Exits Taken 3 | 1 . 1 1 . Scrap Searched 2 | . . 1 . 1 Spaces Dug . | . . . . . Terrain Destroyed . | . . . . . Melee . | . . . . . Projectile . | . . . . . AOE . | . . . . . Terrain Rammed . | . . . . . Walls Destroyed . | . . . . . Machines Disabled . | . . . . . Actions | -11 -10 -10 -10 -9 --------- Run | Yrd Mat Min Exi Min Total 1418 | 83 369 448 445 73 Wait 28 | . 4 17 4 3 Move 1277 | 60 334 410 407 66 Hop . | . . . . . Pick Up 38 | 10 4 3 20 1 Fast Attach 2 | 2 . . . . Attach 9 | 4 1 1 3 . Detach . | . . . . . Swap 3 | . 2 . 1 . Drop 13 | . 2 1 10 . Fire 48 | 7 22 16 . 3 Melee . | . . . . . Ram . | . . . . . Kick . | . . . . . Crush . | . . . . . Escape Stasis . | . . . . . Rewire . | . . . . . Trap . | . . . . . Miscellaneous . | . . . . . Route ------- -11/Scrapyard -10/Materials (discovered 2 exits: [*Mat] / *Min) -10/Mines (discovered 4 exits: [*Mat x2] / *Exi / [*Sub]) -10/Exiles -9/Mines History --------- Turn | Location | Event 36 | -11/Scrapyard | Discovered new exit (range 15) 120 | -11/Scrapyard | Entered Materials 300 | -10/Materials | Build established: Mutant 535 | -10/Materials | Identified exit to Mines 543 | -10/Materials | Discovered new exit (range 16) 583 | -10/Materials | Central database locked down 734 | -10/Materials | Entered Mines 803 | -10/Mines | Discovered new exit (range 6) 823 | -10/Mines | Learned Materials emergency access door positions 833 | -10/Mines | Discovered new exit (range 9) 1015 | -10/Mines | Discovered new exit (range 8) 1042 | -10/Mines | Assisted by bots powering up and referring to "LRC-V3" 1070 | -10/Mines | Found a hidden stash of uninstalled traps 1109 | -10/Mines | Received a Mining Laser from a helpful Derelict 1153 | -10/Mines | Met a Derelict shopkeep closing up shop 1446 | -10/Mines | Deemed a non-threat by the Exiles lab entrance 1446 | -10/Mines | Discovered new exit (range 5) 1460 | -10/Mines | Entered Exiles 1460 | -10/Exiles | Accompanied by 3 allies 1508 | -10/Exiles | Met 8R-AWN 1534 | -10/Exiles | Met EX-HEX 1642 | -10/Exiles | Met EX-DEC 1667 | -10/Exiles | Learned location of Zion (-7) 1798 | -10/Exiles | Met EX-BIN 1821 | -10/Exiles | Aligned with FarCom system 1822 | -10/Exiles | Given EX-Vault access code 1859 | -10/Exiles | Opened EX-Vault 1883 | -10/Exiles | Found Chronowheel 1887 | -10/Exiles | Found Firepult 1896 | -10/Exiles | Found Gui. Plasma Cannon 1974 | -10/Exiles | Warned to stay clear of 0b10 Research branches 2161 | -10/Exiles | Build established: Hauler-Mutant 2233 | -10/Exiles | Discovered new exit (range 10) 2256 | -10/Exiles | Stole three prototypes: Chronowheel, Gui. Plasma Cannon, Firepult 2256 | -10/Exiles | Entered Mines 2256 | -9/Mines | Accompanied by 3 allies 2369 | -9/Mines | Assembled infested the area 2374 | -9/Mines | Assisted by a Guerilla fighting off Assembled 2423 | -9/Mines | Self-destructed Last Messages --------------- 02288_ Searching scrap... 02288_ Found Med. Armor Plating. 02288_ Found Cooling System. 02288_ Found 56 Matter. 02288_ Found 32 Matter. 02289_ Acquired 22 matter. 02293_ Acquired Med. Armor Plating. 02335_ K-01 Serf collects debris. 02369_ ALERT: Infestation in the mines, dispatching Demolisher response squad. 02378_ A derelict is hurriedly installing traps. 02419_ Wheel destroyed. 02419_ as-95755 destroyed. 02420_ The unstable cave ceiling collapses. 02420_ Lgt. Ion Engine destroyed. 02420_ as-69382 destroyed. 02420_ as-29535 destroyed. 02420_ T-07 Excavator destroyed. 02421_ Wheel destroyed. 02423_ The unstable cave ceiling collapses. Map ----- +----------------------------------------------------+ | ????????????????????????????????????????????????? | | ????????????????????????????????????????????????? | | ????????????????????????????????????????????????? | | ????????????????????????????????????????????????? | | ????????????????????????????????????????????????? | | ????????????????????????????????????????????????? | | ?????########???????????????????????????????????? | | ?????# #???????????????????????????????????? | | ?????# """ #???????????????????????????????????? | | ?????# """ #????? ?????????????????????????????? | | ?????# " #????# ?????????????????????????????? | | ?????# #????# ?????????????????????????????? | | ?????# * [ #????# ????????????????????????????? | | ?????# = [[###### ????????????????????????????? | | ?????# ## ?# ?????????????????????????? | | ?????# ### #%k ## ?????????????????????????? | | ?????##### ##?# ## # ?????????????????????????? | | ?????????# #??#t # ?????????????????????????? | | ?????????# #??# ?????????????????????????? | | ?????????# #### ?????????????????????????? | | ?????????#!% % #####????????????????????? | | ?????????#%#### # ##?#### #????????????? | | ?????????# #??# # #????????????? | | ?????????# #??# dd #?????????????????? | | ?????????# #???# #?????????????????? | | ?????????# #????# @ ###?????????????????? | | ??????#### ####### #??????????????????? | | ?????## #### #########???????????? | | ?????# ### #???????????? | | ?????###### # #### ## #???####???? | | ??????????## #####??# #?????? ??? | | ???????????###########??????# ### ??? | | ????????????????????????????# #????????? | | ????????????????????????????#### # #?????????? | | ????????????????????????????????? # #???????????? | | ??????????????????????????????????^ ????????????? | | ????????????????????????????????????#???????????? | | ????????????????????????????????????????????????? | | ????????????????????????????????????????????????? | | | | | | | | | | | | | | | | | | | | | | | +----------------------------------------------------+ Best States ------------- Heat Dissipation 25 Energy Generation 10 Energy Capacity 250 Matter Stores 300 Matter Capacity 300 Sight Range 16 Terrain Scan Density 10 Evasion (%) 50 Recoil Reduction 2 Item Schematics ----------------- None Robot Schematics ------------------ None Fabricated ------------ Nothing Repaired ---------- Nothing Alien Tech Used ----------------- None Achievements -------------- None Challenges ------------ None Game ------ Seed TripodWarpPick Manual? 0 Play Time 00:12:28 Cumulative 384.9 hours Start 2025.10.15 @ 12:43:20 End 2025.10.15 @ 13:21:28 Sessions 2 Manual Loads 0 Difficulty Rogue Special Mode None Game No. 505 Rogue 505 Adventurer 0 Explorer 0 Win Type - Total 11 Types 6/0/1/2/1/0/1/0/0/0 Lore% 88 Gallery% 83 Achievement% 70 Wizard Run 0 Options --------- Layout 0 ASCII 0 Keyboard 0 Movement Mouse Keybinds 0 Fullscreen 1 Font 24/Tamsyn Map View 76x50 Zoom Use 0% Tactical HUD 1 Map Filters NONE Filters NONE Steam 1 RUN: be01c3a6-9c5e-4674-8cdd-9e353997f610